fUST/lending_fUST_20250530
["ID","MTS","AMOUNT","RATE_DAILY","PERIOD"]
[363029490,1748555439329,-430.0,0.00019178,2]
[363029491,1748555439339,-1108.87,0.00019178,2]
[363029492,1748555439349,-430.0,0.00019178,2]
[363029493,1748555439359,-430.0,0.00019178,2]
[363029494,1748555439369,-430.0,0.00019178,2]
[363029495,1748555439379,-430.0,0.00019178,2]
[363029496,1748555439389,-430.0,0.00019178,2]
[363029497,1748555439398,-430.0,0.00019178,2]
[363029498,1748555439408,-430.0,0.00019178,2]
[363029499,1748555439417,-430.0,0.00019178,2]
[363029500,1748555439426,-430.0,0.00019178,2]
[363029501,1748555439436,-430.0,0.00019178,2]
[363029502,1748555439445,-430.0,0.00019178,2]
[363029503,1748555439456,-290.0,0.00019178,2]
[363029504,1748555439465,-450.50152513,0.00019178,2]
[363029505,1748555439475,-668.51,0.00019178,2]
[363029506,1748555439596,-430.0,0.00019178,2]
[363029507,1748555439606,-430.0,0.00019178,2]
[363029508,1748555439616,-430.0,0.00019178,2]
[363029509,1748555439626,-926.15,0.00019178,2]
[363029510,1748555439636,-430.0,0.00019178,2]
[363029511,1748555439645,-5568.7,0.00019178,2]
[363029512,1748555439655,-448.16562938,0.00019178,2]
[363029513,1748555439664,-400.0,0.00019178,2]
[363029514,1748555439674,-430.0,0.00019178,2]
[363029515,1748555439683,-430.0,0.00019178,2]
[363029516,1748555439692,-430.0,0.00019178,2]
[363029517,1748555439712,-430.0,0.00019178,2]
[363029518,1748555439725,-430.0,0.00019178,2]
[363029519,1748555439736,-176.41573213,0.00019178,2]
[363029520,1748555439747,-430.0,0.00019178,2]
[363029521,1748555439759,-430.0,0.00019178,2]
[363029522,1748555439770,-430.0,0.00019178,2]
[363029523,1748555439780,-400.0,0.00019178,2]
[363029524,1748555439792,-400.0,0.00019178,2]
[363029525,1748555439802,-8025.26,0.00019178,2]
[363029526,1748555439812,-4808.74,0.00019178,2]
[363029527,1748555439822,-2559.97,0.00019178,2]
[363029528,1748555439833,-430.0,0.00019178,2]
[363029529,1748555439843,-550.0,0.00019178,2]
[363029530,1748555439852,-430.0,0.00019178,2]
[363029531,1748555439862,-430.0,0.00019178,2]
[363029532,1748555439872,-1236.51,0.00019178,2]
[363029533,1748555439882,-430.0,0.00019178,2]
[363029534,1748555439892,-370.934058,0.00019178,2]
[363029535,1748555439903,-430.0,0.00019178,2]
[363029536,1748555439914,-430.0,0.00019178,2]
[363029537,1748555439924,-430.0,0.00019178,2]
[363029538,1748555439934,-418.79794738,0.00019178,2]
[363029539,1748555439944,-731.47,0.00019178,2]
[363029540,1748555439954,-430.0,0.00019178,2]
[363029541,1748555439964,-3312.18,0.00019178,2]
[363029542,1748555439974,-500.0,0.00019178,2]
[363029543,1748555439984,-500.0,0.00019178,2]
[363029544,1748555439994,-500.0,0.00019178,2]
[363029545,1748555440004,-500.0,0.00019178,2]
[363029546,1748555440013,-500.0,0.00019178,2]
[363029547,1748555440024,-500.0,0.00019178,2]
[363029548,1748555440034,-500.0,0.00019178,2]
[363029549,1748555440045,-500.0,0.00019178,2]
[363029550,1748555440055,-500.0,0.00019178,2]
[363029551,1748555440065,-500.0,0.00019178,2]
[363029553,1748555440076,-430.0,0.00019178,2]
[363029554,1748555440086,-500.0,0.00019178,2]
[363029555,1748555440096,-500.0,0.00019178,2]
[363029556,1748555440106,-430.0,0.00019178,2]
[363029557,1748555440115,-430.0,0.00019178,2]
[363029558,1748555440125,-1101.77,0.00019178,2]
[363029559,1748555440135,-430.0,0.00019178,2]
[363029560,1748555440145,-430.0,0.00019178,2]
[363029561,1748555440155,-430.0,0.00019178,2]
[363029562,1748555440164,-400.0,0.00019178,2]
[363029563,1748555440174,-430.0,0.00019178,2]
[363029564,1748555440184,-430.0,0.00019178,2]
[363029565,1748555440194,-2161.18,0.00019178,2]
[363029566,1748555440204,-430.0,0.00019178,2]
[363029567,1748555440215,-400.0,0.00019178,2]
[363029568,1748555440224,-500.0,0.00019178,2]
[363029569,1748555440235,-350.0,0.00019178,2]
[363029570,1748555440244,-817.91,0.00019178,2]
[363029571,1748555440254,-430.0,0.00019178,2]
[363029573,1748555440264,-430.0,0.00019178,2]
[363029574,1748555440274,-430.0,0.00019178,2]
[363029575,1748555440284,-430.0,0.00019178,2]
[363029576,1748555440293,-500.0,0.00019178,2]
[363029577,1748555440304,-400.55571004,0.00019178,2]
[363029578,1748555440314,-290.48300147,0.00019178,2]
[363029580,1748555440324,-562.22968061,0.00019178,2]
[363029582,1748555440334,-430.0,0.00019178,2]
[363029583,1748555440344,-908.65,0.00019178,2]
[363029584,1748555440354,-430.0,0.00019178,2]
[363029585,1748555440363,-430.0,0.00019178,2]
[363029586,1748555440373,-562.0,0.00019178,2]
[363029587,1748555440383,-1765.11,0.00019178,2]
[363029588,1748555440393,-430.0,0.00019178,2]
[363029589,1748555440402,-400.0,0.00019178,2]
[363029590,1748555440412,-430.0,0.00019178,2]
[363029591,1748555440421,-430.0,0.00019178,2]
[363029592,1748555440431,-430.0,0.00019178,2]
[363029593,1748555440441,-1157.27,0.00019178,2]
[363029594,1748555440451,-435.52,0.00019178,2]
[363029595,1748555440462,-353.82857628,0.00019178,2]
[363029596,1748555440471,-510.02,0.00019178,2]
[363029597,1748555440482,-400.0,0.00019178,2]
[363029598,1748555440492,-430.0,0.00019178,2]
[363029599,1748555440502,-400.0,0.00019178,2]
[363029600,1748555440512,-430.0,0.00019178,2]
[363029601,1748555440522,-430.0,0.00019178,2]
[363029602,1748555440532,-8888.87,0.00019178,2]
[363029603,1748555440542,-430.0,0.00019178,2]
[363029604,1748555440552,-430.0,0.00019178,2]
[363029605,1748555440562,-400.0,0.00019178,2]
[363029606,1748555440573,-430.0,0.00019178,2]
[363029607,1748555440583,-400.0,0.00019178,2]
[363029608,1748555440593,-608.9,0.00019178,2]
[363029609,1748555440603,-1009.16,0.00019178,2]
[363029610,1748555440612,-400.0,0.00019178,2]
[363029611,1748555440622,-430.0,0.00019178,2]
[363029612,1748555440632,-430.0,0.00019178,2]
[363029613,1748555440641,-430.0,0.00019178,2]
[363029614,1748555440651,-430.0,0.00019178,2]
[363029615,1748555440661,-430.0,0.00019178,2]
[363029616,1748555440671,-500.0,0.00019178,2]
[363029617,1748555440681,-430.0,0.00019178,2]
[363029618,1748555440690,-430.0,0.00019178,2]
[363029619,1748555440700,-430.0,0.00019178,2]
[363029620,1748555440711,-430.0,0.00019178,2]
[363029621,1748555440724,-3227.19,0.00019178,2]
[363029622,1748555440733,-4753.93,0.00019178,2]
[363029624,1748555440743,-430.0,0.00019178,2]
[363029626,1748555440752,-430.0,0.00019178,2]
[363029627,1748555440763,-2003.47,0.00019178,2]
[363029628,1748555440772,-430.0,0.00019178,2]
[363029630,1748555440782,-470.51149886,0.00019178,2]
[363029632,1748555440791,-606.23,0.00019178,2]
[363029635,1748555440801,-430.0,0.00019178,2]
[363029637,1748555440810,-430.0,0.00019178,2]
[363029640,1748555440820,-2063.51,0.00019178,2]
[363029642,1748555440829,-471.12381801,0.00019178,2]
[363029644,1748555440838,-370.97651432,0.00019178,2]
[363029646,1748555440848,-430.0,0.00019178,2]
[363029648,1748555440858,-4074.55,0.00019178,2]
[363029650,1748555440867,-430.0,0.00019178,2]
[363029652,1748555440877,-430.0,0.00019178,2]
[363029654,1748555440886,-430.0,0.00019178,2]
[363029656,1748555440895,-430.0,0.00019178,2]
[363029658,1748555440905,-7990.04,0.00019178,2]
[363029660,1748555440915,-2227.52,0.00019178,2]
[363029662,1748555440924,-430.0,0.00019178,2]
[363029664,1748555440934,-430.0,0.00019178,2]
[363029666,1748555440944,-430.0,0.00019178,2]
[363029668,1748555440953,-430.0,0.00019178,2]
[363029670,1748555440963,-685.7,0.00019178,2]
[363029672,1748555440973,-430.0,0.00019178,2]
[363029674,1748555440982,-500.0,0.00019178,2]
[363029675,1748555440992,-430.0,0.00019178,2]
[363029677,1748555441001,-443.66265402,0.00019178,2]
[363029679,1748555441010,-430.0,0.00019178,2]
[363029680,1748555441020,-3097.56,0.00019178,2]
[363029681,1748555441029,-430.0,0.00019178,2]
[363029682,1748555441039,-400.0,0.00019178,2]
[363029684,1748555441049,-430.0,0.00019178,2]
[363029686,1748555441059,-2402.15,0.00019178,2]
[363029688,1748555441068,-2035.02,0.00019178,2]
[363029690,1748555441077,-655.88,0.00019178,2]
[363029692,1748555441087,-430.0,0.00019178,2]
[363029694,1748555441097,-430.95128504,0.00019178,2]
[363029695,1748555441107,-552.62,0.00019178,2]
[363029696,1748555441117,-430.0,0.00019178,2]
[363029697,1748555441127,-430.0,0.00019178,2]
[363029698,1748555441137,-1455.48,0.00019178,2]
[363029699,1748555441147,-443.62312974,0.00019178,2]
[363029700,1748555441157,-712.72,0.00019178,2]
[363029701,1748555441166,-430.0,0.00019178,2]
[363029702,1748555441176,-430.0,0.00019178,2]
[363029703,1748555441186,-430.0,0.00019178,2]
[363029704,1748555441195,-430.0,0.00019178,2]
[363029705,1748555441205,-448.27840671,0.00019178,2]
[363029706,1748555441215,-1028.76,0.00019178,2]
[363029707,1748555441225,-430.0,0.00019178,2]
[363029708,1748555441235,-430.0,0.00019178,2]
[363029709,1748555441244,-430.0,0.00019178,2]
[363029710,1748555441254,-4132.94,0.00019178,2]
[363029711,1748555441264,-1078.05,0.00019178,2]
[363029712,1748555441273,-430.0,0.00019178,2]
[363029713,1748555441283,-560.95,0.00019178,2]
[363029714,1748555441293,-430.0,0.00019178,2]
[363029715,1748555441303,-616.04,0.00019178,2]
[363029716,1748555441312,-409.85001112,0.00019178,2]
[363029717,1748555441322,-430.0,0.00019178,2]
[363029718,1748555441331,-4764.3,0.00019178,2]
[363029719,1748555441340,-430.0,0.00019178,2]
[363029720,1748555441349,-2552.74,0.00019178,2]
[363029721,1748555441359,-3358.03,0.00019178,2]
[363029722,1748555441368,-430.0,0.00019178,2]
[363029723,1748555441378,-1263.34,0.00019178,2]
[363029724,1748555441387,-430.0,0.00019178,2]
[363029725,1748555441396,-430.0,0.00019178,2]
[363029726,1748555441406,-470.0,0.00019178,2]
[363029727,1748555441415,-187.36639071,0.00019352,2]
[363029728,1748555441424,-2950.0,0.0001945,2]
[363029729,1748555441434,-500.0,0.00019451,2]
[363029730,1748555441443,-500.0,0.00019451,2]
[363029731,1748555441453,-375.47479354,0.00019451,2]
[363029732,1748555441466,-430.0,0.00019452,2]
[363029733,1748555441476,-430.0,0.00019452,2]
[363029734,1748555441485,-276.94288617,0.00019452,2]
[363029735,1748555441495,-470.0,0.00019452,2]
[363029736,1748555441505,-379.61,0.00019452,2]
[363029737,1748555441515,-430.0,0.00019452,2]
[363029738,1748555441524,-490.0,0.00019452,2]
[363029739,1748555441534,-430.0,0.00019452,2]
[363029740,1748555441543,-496.62247473,0.00019452,2]
[363029741,1748555441553,-430.0,0.00019452,2]
[363029742,1748555441563,-430.0,0.00019452,2]
[363029743,1748555441572,-570.0,0.00019452,2]
[363029744,1748555441582,-298.8396089,0.00019452,2]
[363029745,1748555441591,-490.0,0.00019452,2]
[363029746,1748555441601,-437.89,0.00019452,2]
[363029747,1748555441611,-422.53181784,0.00019452,2]
[363029748,1748555441621,-490.0,0.00019452,2]
[363029749,1748555441630,-430.0,0.00019452,2]
[363029750,1748555441640,-430.0,0.00019452,2]
[363029751,1748555441650,-430.0,0.00019452,2]
[363029752,1748555441665,-490.0,0.00019452,2]
[363029753,1748555441675,-430.0,0.00019452,2]
[363029754,1748555441685,-530.0,0.00019452,2]
[363029755,1748555441695,-430.0,0.00019452,2]
[363029756,1748555441704,-430.0,0.00019452,2]
[363029757,1748555441718,-430.0,0.00019452,2]
[363029758,1748555441727,-1738.29,0.00019452,2]
[363029759,1748555441737,-771.09,0.00019452,2]
[363029760,1748555441747,-430.0,0.00019452,2]
[363029761,1748555441757,-400.0,0.00019452,2]
[363029762,1748555441767,-325.54406162,0.00019452,2]
[363029763,1748555441776,-460.57,0.00019452,2]
[363029764,1748555441786,-430.0,0.00019452,2]
[363029765,1748555441796,-1000.05,0.00019452,2]
[363029766,1748555441805,-430.0,0.00019452,2]
[363029767,1748555441815,-490.0,0.00019452,2]
[363029768,1748555441823,-430.0,0.00019452,2]
[363029769,1748555441832,-430.0,0.00019452,2]
[363029770,1748555441842,-430.0,0.00019452,2]
[363029771,1748555441852,-430.0,0.00019452,2]
[363029772,1748555441862,-430.0,0.00019452,2]
[363029773,1748555441872,-470.0,0.00019452,2]
[363029774,1748555441881,-430.0,0.00019452,2]
[363029775,1748555441891,-1000.0,0.00019452,2]
[363029776,1748555441901,-430.0,0.00019452,2]
[363029777,1748555441910,-430.0,0.00019452,2]
[363029778,1748555441920,-430.0,0.00019452,2]
[363029779,1748555441930,-490.0,0.00019452,2]
[363029780,1748555441939,-430.0,0.00019452,2]
[363029781,1748555441950,-550.0,0.00019452,2]
[363029782,1748555441960,-430.0,0.00019452,2]
[363029783,1748555442088,-430.0,0.00019452,2]
[363029784,1748555442098,-430.0,0.00019452,2]
[363029785,1748555442107,-430.0,0.00019452,2]
[363029786,1748555442118,-480.40700973,0.00019452,2]
[363029787,1748555442128,-754.28,0.00019452,2]
[363029788,1748555442138,-430.0,0.00019452,2]
[363029789,1748555442148,-430.0,0.00019452,2]
[363029790,1748555442158,-430.0,0.00019452,2]
[363029791,1748555442167,-329.16087521,0.00019452,2]
[363029792,1748555442177,-450.0,0.00019452,2]
[363029793,1748555442187,-430.0,0.00019452,2]
[363029794,1748555442196,-430.0,0.00019452,2]
[363029795,1748555442205,-430.0,0.00019452,2]
[363029796,1748555442215,-430.0,0.00019452,2]
[363029797,1748555442224,-430.0,0.00019452,2]
[363029798,1748555442233,-430.0,0.00019452,2]
[363029799,1748555442242,-430.0,0.00019452,2]
[363029800,1748555442251,-430.0,0.00019452,2]
[363029801,1748555442261,-430.0,0.00019452,2]
[363029802,1748555442270,-430.0,0.00019452,2]
[363029803,1748555442279,-430.0,0.00019452,2]
[363029804,1748555442288,-430.0,0.00019452,2]
[363029805,1748555442297,-6696.96,0.00019452,2]
[363029806,1748555442306,-430.0,0.00019452,2]
[363029807,1748555442315,-430.0,0.00019452,2]
[363029808,1748555442324,-430.0,0.00019452,2]
[363029809,1748555442333,-470.0,0.00019452,2]
[363029810,1748555442343,-430.0,0.00019452,2]
[363029811,1748555442352,-430.0,0.00019452,2]
[363029812,1748555442361,-430.0,0.00019452,2]
[363029813,1748555442370,-616.94,0.00019452,2]
[363029814,1748555442379,-492.72,0.00019452,2]
[363029815,1748555442388,-430.0,0.00019452,2]
[363029816,1748555442397,-430.0,0.00019452,2]
[363029817,1748555442406,-430.0,0.00019452,2]
[363029818,1748555442415,-430.0,0.00019452,2]
[363029819,1748555442424,-446.09,0.00019452,2]
[363029820,1748555442433,-966.76,0.00019452,2]
[363029821,1748555442442,-430.0,0.00019452,2]
[363029822,1748555442452,-871.41,0.00019452,2]
[363029823,1748555442462,-420.0,0.00019452,2]
[363029824,1748555442471,-430.0,0.00019452,2]
[363029825,1748555442481,-430.0,0.00019452,2]
[363029826,1748555442491,-430.0,0.00019452,2]
[363029827,1748555442500,-1108.87,0.00019452,2]
[363029828,1748555442509,-430.0,0.00019452,2]
[363029829,1748555442519,-430.0,0.00019452,2]
[363029830,1748555442528,-430.0,0.00019452,2]
[363029831,1748555442540,-430.0,0.00019452,2]
[363029832,1748555442549,-430.0,0.00019452,2]
[363029833,1748555442559,-430.0,0.00019452,2]
[363029834,1748555442568,-430.0,0.00019452,2]
[363029835,1748555442578,-430.0,0.00019452,2]
[363029836,1748555442588,-430.0,0.00019452,2]
[363029837,1748555442598,-152.79090163,0.00019452,2]
[363029838,1748555442607,-430.0,0.00019452,2]
[363029839,1748555442617,-668.51,0.00019452,2]
[363029840,1748555442627,-430.0,0.00019452,2]
[363029841,1748555442636,-430.0,0.00019452,2]
[363029842,1748555442646,-400.0,0.00019452,2]
[363029843,1748555442655,-926.15,0.00019452,2]
[363029844,1748555442664,-5568.7,0.00019452,2]
[363029845,1748555442674,-430.0,0.00019452,2]
[363029846,1748555442683,-430.0,0.00019452,2]
[363029847,1748555442692,-534.75253599,0.00019452,2]
[363029848,1748555442702,-430.0,0.00019452,2]
[363029849,1748555442712,-430.0,0.00019452,2]
[363029850,1748555442723,-430.0,0.00019452,2]
[363029851,1748555442732,-8025.26,0.00019452,2]
[363029852,1748555442742,-4808.74,0.00019452,2]
[363029853,1748555442751,-2559.97,0.00019452,2]
[363029854,1748555442763,-430.0,0.00019452,2]
[363029855,1748555442772,-1236.51,0.00019452,2]
[363029856,1748555442781,-201.40897413,0.00019452,2]
[363029857,1748555442791,-430.0,0.00019452,2]
[363029858,1748555442803,-470.0,0.00019452,2]
[363029859,1748555442815,-731.47,0.00019452,2]
[363029860,1748555442825,-430.0,0.00019452,2]
[363029861,1748555442835,-3312.18,0.00019452,2]
[363029862,1748555442845,-456.75680988,0.00019452,2]
[363029863,1748555442855,-430.0,0.00019452,2]
[363029864,1748555442865,-193.85391567,0.00019452,2]
[363029865,1748555442875,-430.0,0.00019452,2]
[363029866,1748555442884,-430.0,0.00019452,2]
[363029867,1748555442894,-430.0,0.00019452,2]
[363029868,1748555442903,-1101.77,0.00019452,2]
[363029869,1748555442912,-2161.18,0.00019452,2]
[363029870,1748555442921,-450.78072446,0.00019452,2]
[363029871,1748555442931,-817.91,0.00019452,2]
[363029872,1748555442941,-430.0,0.00019452,2]
[363029873,1748555442950,-430.0,0.00019452,2]
[363029874,1748555442959,-430.0,0.00019452,2]
[363029875,1748555442969,-430.0,0.00019452,2]
[363029876,1748555442978,-500.0,0.00019452,2]
[363029877,1748555442987,-430.0,0.00019452,2]
[363029878,1748555442996,-908.65,0.00019452,2]
[363029879,1748555443006,-430.0,0.00019452,2]
[363029880,1748555443015,-420.0,0.00019452,2]
[363029881,1748555443024,-562.0,0.00019452,2]
[363029882,1748555443034,-1765.11,0.00019452,2]
[363029883,1748555443043,-420.0,0.00019452,2]
[363029884,1748555443054,-430.0,0.00019452,2]
[363029885,1748555443063,-430.0,0.00019452,2]
[363029886,1748555443072,-430.0,0.00019452,2]
[363029887,1748555443082,-1157.27,0.00019452,2]
[363029888,1748555443091,-510.02,0.00019452,2]
[363029889,1748555443100,-557.65951359,0.00019452,2]
[363029890,1748555443110,-392.6,0.00019452,2]
[363029891,1748555443119,-430.0,0.00019452,2]
[363029892,1748555443128,-8888.87,0.00019452,2]
[363029893,1748555443138,-430.0,0.00019452,2]
[363029894,1748555443147,-430.0,0.00019452,2]
[363029895,1748555443156,-430.0,0.00019452,2]
[363029896,1748555443166,-608.9,0.00019452,2]
[363029897,1748555443175,-1009.16,0.00019452,2]
[363029898,1748555443184,-430.0,0.00019452,2]
[363029899,1748555443193,-430.0,0.00019452,2]
[363029900,1748555443202,-195.14464213,0.00019452,2]
[363029901,1748555443212,-443.69965014,0.00019452,2]
[363029902,1748555443221,-430.0,0.00019452,2]
[363029903,1748555443233,-400.0,0.00019452,2]
[363029904,1748555443243,-430.0,0.00019452,2]
[363029905,1748555443252,-430.0,0.00019452,2]
[363029906,1748555443263,-162.161141,0.00019452,2]
[363029907,1748555443272,-3227.19,0.00019452,2]
[363029908,1748555443283,-4753.93,0.00019452,2]
[363029909,1748555443293,-430.0,0.00019452,2]
[363029910,1748555443303,-420.0,0.00019452,2]
[363029911,1748555443313,-2003.47,0.00019452,2]
[363029912,1748555443323,-430.0,0.00019452,2]
[363029913,1748555443332,-606.23,0.00019452,2]
[363029914,1748555443342,-420.0,0.00019452,2]
[363029915,1748555443352,-430.0,0.00019452,2]
[363029916,1748555443361,-2063.51,0.00019452,2]
[363029917,1748555443370,-430.0,0.00019452,2]
[363029918,1748555443379,-4074.55,0.00019452,2]
[363029919,1748555443389,-430.0,0.00019452,2]
[363029921,1748555443400,-430.0,0.00019452,2]
[363029922,1748555443412,-430.0,0.00019452,2]
[363029923,1748555443422,-430.0,0.00019452,2]
[363029924,1748555443432,-7990.04,0.00019452,2]
[363029925,1748555443442,-2227.52,0.00019452,2]
[363029926,1748555443452,-430.0,0.00019452,2]
[363029927,1748555443462,-430.0,0.00019452,2]
[363029928,1748555443471,-430.0,0.00019452,2]
[363029929,1748555443480,-430.0,0.00019452,2]
[363029930,1748555443490,-685.7,0.00019452,2]
[363029931,1748555443499,-430.0,0.00019452,2]
[363029932,1748555443508,-430.0,0.00019452,2]
[363029933,1748555443518,-420.0,0.00019452,2]
[363029934,1748555443527,-3097.56,0.00019452,2]
[363029935,1748555443536,-430.0,0.00019452,2]
[363029936,1748555443546,-2402.15,0.00019452,2]
[363029937,1748555443555,-430.0,0.00019452,2]
[363029938,1748555443565,-2035.02,0.00019452,2]
[363029939,1748555443575,-655.88,0.00019452,2]
[363029940,1748555443584,-430.0,0.00019452,2]
[363029941,1748555443594,-552.62,0.00019452,2]
[363029942,1748555443603,-1455.48,0.00019452,2]
[363029943,1748555443613,-712.72,0.00019452,2]
[363029944,1748555443623,-430.0,0.00019452,2]
[363029945,1748555443633,-430.0,0.00019452,2]
[363029946,1748555443642,-430.0,0.00019452,2]
[363029947,1748555443651,-430.0,0.00019452,2]
[363029948,1748555443661,-1028.76,0.00019452,2]
[363029949,1748555443670,-430.0,0.00019452,2]
[363029950,1748555443680,-430.0,0.00019452,2]
[363029951,1748555443689,-4132.94,0.00019452,2]
[363029952,1748555443699,-1078.05,0.00019452,2]
[363029953,1748555443708,-270.0,0.00019452,2]
[363029954,1748555443723,-560.95,0.00019452,2]
[363029955,1748555443733,-430.0,0.00019452,2]
[363029956,1748555443742,-616.04,0.00019452,2]
[363029957,1748555443751,-430.0,0.00019452,2]
[363029958,1748555443762,-4764.3,0.00019452,2]
[363029959,1748555443771,-430.0,0.00019452,2]
[363029960,1748555443780,-2552.74,0.00019452,2]
[363029961,1748555443790,-3358.03,0.00019452,2]
[363029962,1748555443799,-430.0,0.00019452,2]
[363029963,1748555443808,-1263.34,0.00019452,2]
[363029964,1748555443817,-490.0,0.00019726,2]
[363029965,1748555443827,-430.0,0.00019726,2]
[363029966,1748555443836,-430.0,0.00019726,2]
[363029967,1748555443845,-430.0,0.00019726,2]
[363029968,1748555443854,-430.0,0.00019726,2]
[363029969,1748555443864,-430.0,0.00019726,2]
[363029970,1748555443873,-430.0,0.00019726,2]
[363029971,1748555443882,-430.0,0.00019726,2]
[363029972,1748555443892,-364.4,0.00019726,2]
[363029973,1748555443902,-430.0,0.00019726,2]
[363029974,1748555443911,-430.0,0.00019726,2]
[363029975,1748555443920,-430.0,0.00019726,2]
[363029976,1748555443929,-430.0,0.00019726,2]
[363029977,1748555443938,-1738.29,0.00019726,2]
[363029978,1748555443947,-771.09,0.00019726,2]
[363029979,1748555443956,-430.0,0.00019726,2]
[363029980,1748555443966,-460.57,0.00019726,2]
[363029981,1748555443976,-490.0,0.00019726,2]
[363029982,1748555443985,-1000.05,0.00019726,2]
[363029983,1748555443995,-430.0,0.00019726,2]
[363029984,1748555444004,-430.0,0.00019726,2]
[363029985,1748555444013,-430.0,0.00019726,2]
[363029986,1748555444023,-430.0,0.00019726,2]
[363029987,1748555444032,-430.0,0.00019726,2]
[363029988,1748555444041,-430.0,0.00019726,2]
[363029989,1748555444051,-1000.0,0.00019726,2]
[363029990,1748555444060,-430.0,0.00019726,2]
[363029991,1748555444070,-430.0,0.00019726,2]
[363029992,1748555444079,-430.0,0.00019726,2]
[363029993,1748555444089,-430.0,0.00019726,2]
[363029994,1748555444098,-558.57683958,0.00019726,2]
[363029995,1748555444107,-430.0,0.00019726,2]
[363029996,1748555444117,-754.28,0.00019726,2]
[363029997,1748555444126,-430.0,0.00019726,2]
[363029998,1748555444136,-430.0,0.00019726,2]
[363029999,1748555444145,-430.0,0.00019726,2]
[363030000,1748555444154,-430.0,0.00019726,2]
[363030001,1748555444163,-552.01732202,0.00019726,2]
[363030002,1748555444173,-430.0,0.00019726,2]
[363030003,1748555444277,-430.0,0.00019726,2]
[363030004,1748555444288,-430.0,0.00019726,2]
[363030005,1748555444298,-430.0,0.00019726,2]
[363030006,1748555444307,-430.0,0.00019726,2]
[363030007,1748555444316,-430.0,0.00019726,2]
[363030008,1748555444326,-430.0,0.00019726,2]
[363030009,1748555444335,-430.0,0.00019726,2]
[363030010,1748555444345,-430.0,0.00019726,2]
[363030011,1748555444354,-430.0,0.00019726,2]
[363030012,1748555444364,-6696.96,0.00019726,2]
[363030013,1748555444373,-430.0,0.00019726,2]
[363030014,1748555444382,-430.0,0.00019726,2]
[363030015,1748555444392,-307.39876557,0.00019726,2]
[363030016,1748555444402,-463.08616608,0.00019726,2]
[363030017,1748555444411,-430.0,0.00019726,2]
[363030018,1748555444421,-616.94,0.00019726,2]
[363030019,1748555444430,-492.72,0.00019726,2]
[363030020,1748555444439,-490.0,0.00019726,2]
[363030021,1748555444449,-430.0,0.00019726,2]
[363030022,1748555444461,-430.0,0.00019726,2]
[363030023,1748555444470,-446.09,0.00019726,2]
[363030024,1748555444480,-966.76,0.00019726,2]
[363030025,1748555444490,-190.0,0.00019726,2]
[363030026,1748555444499,-871.41,0.00019726,2]
[363030027,1748555444509,-430.0,0.00019726,2]
[363030028,1748555444518,-430.0,0.00019726,2]